[Event "Women Accentus DAQ Rapid 2022"]
[Site "Biel"]
[Date "2022.07.12"]
[Round "3.1"]
[White "Cornileau, Juliette"]
[Black "Avilova, Yulia"]
[Result "0-1"]
[ECO "D35"]
[WhiteElo "1896"]
[BlackElo "1375"]
[Annotator "NA"]
[PlyCount "122"]
[EventDate "2022.07.11"]
[EventType "tourn"]
[EventCountry "SUI"]
[SourceTitle "playchess.com"]
[Source "ChessBase"]
[SourceQuality "1"]
[TimeControl "900+5"]

1. d4 {[%emt 0:00:04]} d5 {[%emt 0:00:01]} 2. c4 {[%emt 0:00:01]} e6 {[%emt 0:00:01]} 3. Nc3 {[%emt 0:00:01]} Nf6 {[%emt 0:00:01]} 4. cxd5 {[%emt 0:00:02]} exd5 {[%emt 0:00:06]} 5. Bg5 {[%emt 0:00:01]} Be7 {[%emt 0:00:05]} 6. e3 {[%emt 0:00:06]} O-O {[%emt 0:00:04]} 7. Bd3 {[%emt 0:00:02]} b6 {[%emt 0:00:07]} 8. Qc2 {[%emt 0:00:04]} h6 {[%emt 0:00:05]} 9. Bh4 {[%emt 0:00:09]} c5 {[%emt 0:00:13]} 10. Nge2 {[%emt 0:01:00]} c4 {[%emt 0:00:14]} 11. Bf5 {[%emt 0:00:06]} Bxf5 {[%emt 0:00:29]} 12. Qxf5 {[%emt 0:00:04]} g6 {[%emt 0:01:12]} 13. Qf3 {[%emt 0:00:33]} g5 {[%emt 0:00:23]} 14. Bg3 {[%emt 0:00:03]} Nc6 {[%emt 0:01:12]} 15. h4 {[%emt 0:00:15]} g4 {[%emt 0:00:30]} 16. Qf5 {[%emt 0:01:13]} Nb4 {[%emt 0:00:25]} 17. O-O {[%emt 0:01:53]} Qc8 {[%emt 0:01:34]} 18. Qxc8 {[%emt 0:00:28]} Raxc8 {[%emt 0:00:36]} 19. Be5 {[%emt 0:00:37]} Nd7 {[%emt 0:00:41]} 20. Bg3 {[%emt 0:01:38]} Nf6 {[%emt 0:00:24]} 21. Nf4 {[%emt 0:00:08]} Rfd8 {[%emt 0:00:24]} 22. a3 {[%emt 0:00:02]} Na6 {[%emt 0:00:24]} 23. Nfe2 {[%emt 0:02:21]} Nc7 {[%emt 0:00:50]} 24. Be5 {[%emt 0:00:12]} a6 {[%emt 0:01:14]} 25. Ng3 {[%emt 0:00:08]} Nfe8 {[%emt 0:01:17]} 26. Nf5 {[%emt 0:00:47]} Bf8 {[%emt 0:00:02]} 27. f3 {[%emt 0:03:26]} h5 {[%emt 0:01:14]} 28. fxg4 {[%emt 0:00:25]} hxg4 {[%emt 0:00:04]} 29. Rf4 {[%emt 0:00:03]} f6 {[%emt 0:00:18]} 30. Rxg4+ {[%emt 0:00:03]} Kh7 {[%emt 0:00:04]} 31. Bf4 {[%emt 0:00:11]} Ne6 {[%emt 0:00:23]} 32. Kf2 {[%emt 0:00:39]} Nxf4 {[%emt 0:00:05]} 33. Rxf4 {[%emt 0:00:04]} Ng7 {[%emt 0:00:16]} 34. Nxg7 {[%emt 0:00:07]} Bxg7 {[%emt 0:00:02]} 35. Rf5 {[%emt 0:00:04]} Re8 {[%emt 0:00:42]} 36. Nxd5 {[%emt 0:00:08]} Rc6 {[%emt 0:00:10]} 37. h5 {[%emt 0:00:28]} b5 {[%emt 0:00:21]} 38. Rh1 {[%emt 0:00:08]} Kh6 {[%emt 0:00:17]} 39. Rf3 {[%emt 0:00:05]} Rd6 {[%emt 0:00:18]} 40. Nc3 {[%emt 0:00:14]} Rde6 {[%emt 0:00:17]} 41. Rhh3 {[%emt 0:00:07]} Rb8 {[%emt 0:00:16]} 42. Rfg3 {[%emt 0:00:03]} a5 {[%emt 0:00:11]} 43. Rg6+ {[%emt 0:00:02]} Kh7 {[%emt 0:00:02]} 44. Rhg3 {[%emt 0:00:01]} Re7 {[%emt 0:00:13]} 45. Nd5 {[%emt 0:00:01]} Rf7 {[%emt 0:00:08]} 46. Nf4 {[%emt 0:00:09]} b4 {[%emt 0:00:10]} 47. axb4 {[%emt 0:00:08]} axb4 {[%emt 0:00:02]} 48. Ne6 {[%emt 0:00:04]} Bh6 {[%emt 0:00:04]} 49. Nc5 {[%emt 0:00:11]} c3 {[%emt 0:00:07]} 50. b3 {[%emt 0:00:13]} Re8 {[%emt 0:00:08]} 51. Nd3 {[%emt 0:00:05]} Rfe7 {[%emt 0:00:04]} 52. Nf4 {[%emt 0:00:11]} c2 {[%emt 0:00:15]} 53. Nd3 {[%emt 0:00:02]} Bxe3+ {[%emt 0:00:02]} 54. Kf1 {[%emt 0:00:07]} c1=Q+ {[%emt 0:00:07]} 55. Nxc1 {[%emt 0:00:01]} Bxc1 {[%emt 0:00:01]} 56. Rxf6 {[%emt 0:00:02]} Bb2 {[%emt 0:00:23]} 57. Rd6 {[%emt 0:00:12]} Re1+ {[%emt 0:00:14]} 58. Kf2 {[%emt 0:00:01]} R8e2+ {[%emt 0:00:05]} 59. Kf3 {[%emt 0:00:00]} Re3+ {[%emt 0:00:03]} 60. Kg4 {[%emt 0:00:02]} Re4+ {[%emt 0:00:05]} 61. Kh3 {[%emt 0:00:03]} Rh1# {[%emt 0:00:04]} 0-1

[Event "Women Accentus DAQ Rapid 2022"]
[Site "Biel"]
[Date "2022.07.12"]
[Round "3.2"]
[White "Sumarriva Paulin, Laura"]
[Black "Zhuang, Yongzhe"]
[Result "1/2-1/2"]
[ECO "C54"]
[WhiteElo "1827"]
[BlackElo "1838"]
[Annotator "NA"]
[PlyCount "88"]
[EventDate "2022.07.11"]
[EventType "tourn"]
[EventCountry "SUI"]
[SourceTitle "playchess.com"]
[Source "ChessBase"]
[SourceQuality "1"]
[TimeControl "900+5"]

1. e4 {[%emt 0:00:03]} e5 {[%emt 0:00:06]} 2. Bc4 {[%emt 0:00:02]} Nf6 {[%emt 0:00:13]} 3. d3 {[%emt 0:00:03]} Nc6 {[%emt 0:00:10]} 4. Nf3 {[%emt 0:00:03]} h6 {[%emt 0:00:48]} 5. c3 {[%emt 0:00:07]} Bc5 {[%emt 0:01:04]} 6. b4 {[%emt 0:00:58]} Bb6 {[%emt 0:00:51]} 7. a4 {[%emt 0:00:20]} a6 {[%emt 0:00:10]} 8. O-O {[%emt 0:01:11]} O-O {[%emt 0:00:13]} 9. a5 {[%emt 0:02:33]} Ba7 {[%emt 0:00:05]} 10. h3 {[%emt 0:00:40]} d6 {[%emt 0:01:10]} 11. Nbd2 {[%emt 0:00:38]} Be6 {[%emt 0:00:47]} 12. Bxe6 {[%emt 0:00:59]} fxe6 {[%emt 0:00:04]} 13. Nc4 {[%emt 0:00:34]} Qe7 {[%emt 0:00:59]} 14. Be3 {[%emt 0:00:26]} Qf7 {[%emt 0:01:34]} 15. Rb1 {[%emt 0:01:35]} Bxe3 {[%emt 0:03:07]} 16. fxe3 {[%emt 0:00:40]} Na7 {[%emt 0:00:34]} 17. Ncd2 {[%emt 0:01:22]} Nc6 {[%emt 0:00:25]} 18. d4 {[%emt 0:00:57]} Qg6 {[%emt 0:01:49]} 19. dxe5 {[%emt 0:02:46]} Nxe5 {[%emt 0:00:21]} 20. Nxe5 {[%emt 0:00:17]} dxe5 {[%emt 0:00:04]} 21. Qc2 {[%emt 0:00:16]} Rad8 {[%emt 0:00:40]} 22. b5 {[%emt 0:00:14]} Qg5 {[%emt 0:00:45]} 23. Nc4 {[%emt 0:00:05]} Rd7 {[%emt 0:00:28]} 24. bxa6 {[%emt 0:00:02]} bxa6 {[%emt 0:00:02]} 25. Rbd1 {[%emt 0:00:07]} Rxd1 {[%emt 0:00:08]} 26. Rxd1 {[%emt 0:00:02]} Qg6 {[%emt 0:00:17]} 27. Nxe5 {[%emt 0:00:04]} Qxe4 {[%emt 0:00:08]} 28. Qxe4 {[%emt 0:00:04]} Nxe4 {[%emt 0:00:02]} 29. Rd7 {[%emt 0:00:07]} Nxc3 {[%emt 0:00:13]} 30. Rxc7 {[%emt 0:00:03]} Nd5 {[%emt 0:00:02]} 31. Rc6 {[%emt 0:00:09]} Nxe3 {[%emt 0:00:09]} 32. Rxe6 {[%emt 0:00:03]} Ra8 {[%emt 0:00:04]} 33. Nd7 {[%emt 0:00:07]} Nc4 {[%emt 0:00:02]} 34. Nb6 {[%emt 0:00:03]} Nxb6 {[%emt 0:00:03]} 35. axb6 {[%emt 0:00:08]} Rb8 {[%emt 0:00:03]} 36. Kf2 {[%emt 0:00:02]} Kf7 {[%emt 0:00:02]} 37. Rc6 {[%emt 0:00:02]} a5 {[%emt 0:00:04]} 38. Rc7+ {[%emt 0:00:06]} Kf6 {[%emt 0:00:02]} 39. b7 {[%emt 0:00:02]} a4 {[%emt 0:00:02]} 40. Rc4 {[%emt 0:00:12]} Rxb7 {[%emt 0:00:01]} 41. Rxa4 {[%emt 0:00:01]} Rb3 {[%emt 0:00:02]} 42. Ra5 {[%emt 0:00:01]} Kg6 {[%emt 0:00:04]} 43. Rc5 {[%emt 0:00:05]} Ra3 {[%emt 0:00:02]} 44. Rb5 {[%emt 0:00:02]} Rc3 {[%emt 0:00:09]} 1/2-1/2

[Event "Women Accentus DAQ Rapid 2022"]
[Site "Biel"]
[Date "2022.07.12"]
[Round "3.3"]
[White "Tamrazyan, Gohar"]
[Black "Ciarletta, Iris"]
[Result "1-0"]
[ECO "D00"]
[WhiteElo "1578"]
[BlackElo "1557"]
[Annotator "NA"]
[PlyCount "91"]
[EventDate "2022.07.11"]
[EventType "tourn"]
[EventCountry "SUI"]
[SourceTitle "playchess.com"]
[Source "ChessBase"]
[SourceQuality "1"]
[TimeControl "900+5"]

1. d4 {[%emt 0:00:01]} Nf6 {[%emt 0:00:03]} 2. Nc3 {[%emt 0:00:05]} d5 {[%emt 0:00:24]} 3. Bf4 {[%emt 0:00:04]} c5 {[%emt 0:00:39]} 4. e4 {[%emt 0:00:02]} dxe4 {[%emt 0:00:51]} 5. dxc5 {[%emt 0:00:02]} Qxd1+ {[%emt 0:00:23]} 6. Rxd1 {[%emt 0:00:03]} Bd7 {[%emt 0:00:18]} 7. Nb5 {[%emt 0:01:58]} Na6 {[%emt 0:01:17]} 8. a3 {[%emt 0:01:00]} Bc6 {[%emt 0:01:01]} 9. b4 {[%emt 0:01:07]} Nd5 {[%emt 0:02:13]} 10. Bg3 {[%emt 0:01:35]} g6 {[%emt 0:00:44]} 11. Bc4 {[%emt 0:00:41]} e6 {[%emt 0:01:51]} 12. Nd6+ {[%emt 0:01:14]} Bxd6 {[%emt 0:00:37]} 13. Bxd6 {[%emt 0:00:07]} Nac7 {[%emt 0:00:16]} 14. Ne2 {[%emt 0:00:57]} Nb5 {[%emt 0:00:17]} 15. Bxb5 {[%emt 0:00:35]} Bxb5 {[%emt 0:00:03]} 16. Nd4 {[%emt 0:00:10]} Bc4 {[%emt 0:00:11]} 17. Kd2 {[%emt 0:00:46]} Kd7 {[%emt 0:00:58]} 18. h4 {[%emt 0:01:06]} f6 {[%emt 0:00:30]} 19. Rhe1 {[%emt 0:00:58]} e3+ {[%emt 0:01:25]} 20. fxe3 {[%emt 0:00:15]} e5 {[%emt 0:00:27]} 21. Ne2 {[%emt 0:00:20]} Ke6 {[%emt 0:01:08]} 22. Nc3 {[%emt 0:00:59]} Rhd8 {[%emt 0:00:14]} 23. Nxd5 {[%emt 0:00:18]} Bxd5 {[%emt 0:00:03]} 24. e4 {[%emt 0:00:06]} Bc6 {[%emt 0:00:11]} 25. Ke3 {[%emt 0:00:27]} f5 {[%emt 0:00:18]} 26. exf5+ {[%emt 0:00:15]} gxf5 {[%emt 0:00:05]} 27. Kf2 {[%emt 0:00:49]} e4 {[%emt 0:00:16]} 28. Ke3 {[%emt 0:00:01]} Rg8 {[%emt 0:00:12]} 29. g3 {[%emt 0:00:04]} Rad8 {[%emt 0:00:24]} 30. Bf4 {[%emt 0:00:09]} Ba4 {[%emt 0:00:03]} 31. Rxd8 {[%emt 0:00:40]} Rxd8 {[%emt 0:00:00]} 32. Re2 {[%emt 0:00:01]} Rd7 {[%emt 0:00:01]} 33. Rd2 {[%emt 0:00:01]} Rd5 {[%emt 0:00:06]} 34. c4 {[%emt 0:00:12]} Rxd2 {[%emt 0:00:02]} 35. Kxd2 {[%emt 0:00:02]} h5 {[%emt 0:00:02]} 36. Kc3 {[%emt 0:00:29]} a6 {[%emt 0:00:01]} 37. Kd4 {[%emt 0:00:01]} Bb3 {[%emt 0:00:01]} 38. b5 {[%emt 0:00:03]} axb5 {[%emt 0:00:06]} 39. cxb5 {[%emt 0:00:01]} Ba4 {[%emt 0:00:06]} 40. Kc4 {[%emt 0:00:02]} Bd1 {[%emt 0:00:02]} 41. Kb4 {[%emt 0:00:05]} Be2 {[%emt 0:00:03]} 42. a4 {[%emt 0:00:01]} Kd5 {[%emt 0:00:03]} 43. Be3 {[%emt 0:00:07]} Bd1 {[%emt 0:00:04]} 44. a5 {[%emt 0:00:01]} Ke6 {[%emt 0:00:02]} 45. a6 {[%emt 0:00:09]} Kd7 {[%emt 0:00:38]} 46. a7 {[%emt 0:00:03]} 1-0

[Event "Women Accentus DAQ Rapid 2022"]
[Site "Biel"]
[Date "2022.07.12"]
[Round "3.4"]
[White "Moracchini, Margaux"]
[Black "Kostina, Veronika"]
[Result "1/2-1/2"]
[ECO "B10"]
[WhiteElo "1823"]
[BlackElo "1883"]
[Annotator "NA"]
[PlyCount "169"]
[EventDate "2022.07.11"]
[EventType "tourn"]
[EventCountry "SUI"]
[SourceTitle "playchess.com"]
[Source "ChessBase"]
[SourceQuality "1"]
[TimeControl "900+5"]

1. e4 {[%emt 0:00:06]} c5 {[%emt 0:00:05]} 2. c3 {[%emt 0:00:08]} e6 {[%emt 0:00:06]} 3. d4 {[%emt 0:00:07]} cxd4 {[%emt 0:00:03]} 4. cxd4 {[%emt 0:00:01]} d5 {[%emt 0:00:01]} 5. exd5 {[%emt 0:01:19]} Qxd5 {[%emt 0:02:29]} 6. Nc3 {[%emt 0:00:08]} Qd8 {[%emt 0:02:49]} 7. Bb5+ {[%emt 0:01:29]} Bd7 {[%emt 0:00:54]} 8. Bc4 {[%emt 0:00:21]} Nf6 {[%emt 0:01:07]} 9. Nf3 {[%emt 0:00:22]} Bb4 {[%emt 0:00:58]} 10. O-O {[%emt 0:00:31]} O-O {[%emt 0:00:33]} 11. Bg5 {[%emt 0:01:00]} h6 {[%emt 0:00:36]} 12. Bh4 {[%emt 0:00:34]} Bxc3 {[%emt 0:00:17]} 13. bxc3 {[%emt 0:00:02]} Bc6 {[%emt 0:00:32]} 14. Ne5 {[%emt 0:00:21]} Nbd7 {[%emt 0:00:40]} 15. Nxd7 {[%emt 0:01:26]} Qxd7 {[%emt 0:00:44]} 16. Bxf6 {[%emt 0:00:11]} gxf6 {[%emt 0:00:01]} 17. Qh5 {[%emt 0:00:14]} Kh7 {[%emt 0:00:31]} 18. Bd3+ {[%emt 0:00:01]} f5 {[%emt 0:00:03]} 19. Rfe1 {[%emt 0:01:27]} Rg8 {[%emt 0:00:29]} 20. Bf1 {[%emt 0:01:20]} Rg5 {[%emt 0:00:16]} 21. Qe2 {[%emt 0:00:11]} Rag8 {[%emt 0:00:05]} 22. f3 {[%emt 0:00:16]} Qd6 {[%emt 0:00:36]} 23. Kh1 {[%emt 0:00:37]} Rh5 {[%emt 0:00:14]} 24. Qe5 {[%emt 0:00:04]} Qxe5 {[%emt 0:00:28]} 25. Rxe5 {[%emt 0:00:14]} Rhg5 {[%emt 0:00:03]} 26. h3 {[%emt 0:00:41]} Kg7 {[%emt 0:00:45]} 27. Bb5 {[%emt 0:00:43]} Bxb5 {[%emt 0:00:13]} 28. Rxb5 {[%emt 0:00:01]} Kf6 {[%emt 0:00:01]} 29. Rg1 {[%emt 0:00:19]} b6 {[%emt 0:00:06]} 30. Rb2 {[%emt 0:00:07]} Rc8 {[%emt 0:00:03]} 31. Rc2 {[%emt 0:00:05]} Rc4 {[%emt 0:00:08]} 32. Re1 {[%emt 0:00:09]} Rg8 {[%emt 0:00:05]} 33. Kg1 {[%emt 0:00:05]} Rgc8 {[%emt 0:00:08]} 34. Re3 {[%emt 0:00:02]} b5 {[%emt 0:00:08]} 35. a3 {[%emt 0:00:19]} a5 {[%emt 0:00:09]} 36. Kf2 {[%emt 0:01:32]} Rxd4 {[%emt 0:00:13]} 37. Rb2 {[%emt 0:00:04]} Rd5 {[%emt 0:00:01]} 38. Ke2 {[%emt 0:00:09]} Rc4 {[%emt 0:00:08]} 39. Rd3 {[%emt 0:00:20]} Re5+ {[%emt 0:00:16]} 40. Kd2 {[%emt 0:00:04]} Ra4 {[%emt 0:00:03]} 41. Rb3 {[%emt 0:00:06]} Rc5 {[%emt 0:00:27]} 42. Rd8 {[%emt 0:00:12]} Re5 {[%emt 0:00:10]} 43. Rb8 {[%emt 0:00:12]} b4 {[%emt 0:00:01]} 44. cxb4 {[%emt 0:00:08]} axb4 {[%emt 0:00:07]} 45. R8xb4 {[%emt 0:00:06]} Raa5 {[%emt 0:00:05]} 46. Rd4 {[%emt 0:00:21]} Rec5 {[%emt 0:00:09]} 47. Rbd3 {[%emt 0:00:09]} Rc8 {[%emt 0:00:07]} 48. a4 {[%emt 0:00:04]} Rca8 {[%emt 0:00:03]} 49. Ra3 {[%emt 0:00:01]} Rg8 {[%emt 0:00:02]} 50. g4 {[%emt 0:00:03]} fxg4 {[%emt 0:00:05]} 51. Rxg4 {[%emt 0:00:11]} Rd8+ {[%emt 0:00:12]} 52. Ke3 {[%emt 0:00:05]} Re5+ {[%emt 0:00:06]} 53. Kf2 {[%emt 0:00:04]} Rd2+ {[%emt 0:00:12]} 54. Kg3 {[%emt 0:00:02]} Ra5 {[%emt 0:00:00]} 55. Rf4+ {[%emt 0:00:09]} Kg6 {[%emt 0:00:05]} 56. Rg4+ {[%emt 0:00:04]} Kf6 {[%emt 0:00:02]} 57. Rf4+ {[%emt 0:00:01]} Kg6 {[%emt 0:00:01]} 58. Rb4 {[%emt 0:00:01]} h5 {[%emt 0:00:10]} 59. Rb5 {[%emt 0:00:06]} Rd5 {[%emt 0:00:03]} 60. Rb8 {[%emt 0:00:11]} Rd4 {[%emt 0:00:05]} 61. Rb5 {[%emt 0:00:07]} Raxa4 {[%emt 0:00:06]} 62. Rxa4 {[%emt 0:00:06]} Rxa4 {[%emt 0:00:01]} 63. Re5 {[%emt 0:00:04]} Ra6 {[%emt 0:00:08]} 64. Rc5 {[%emt 0:00:05]} f6 {[%emt 0:00:06]} 65. Rb5 {[%emt 0:00:01]} e5 {[%emt 0:00:01]} 66. Rb4 {[%emt 0:00:07]} Rd6 {[%emt 0:00:02]} 67. Rb8 {[%emt 0:00:05]} Rd4 {[%emt 0:00:12]} 68. h4 {[%emt 0:00:20]} Rf4 {[%emt 0:00:10]} 69. Rg8+ {[%emt 0:00:05]} Kh7 {[%emt 0:00:03]} 70. Re8 {[%emt 0:00:04]} Kg7 {[%emt 0:00:06]} 71. Re7+ {[%emt 0:00:06]} Kg6 {[%emt 0:00:01]} 72. Re8 {[%emt 0:00:03]} Ra4 {[%emt 0:00:17]} 73. Rg8+ {[%emt 0:00:04]} Kh7 {[%emt 0:00:01]} 74. Rf8 {[%emt 0:00:03]} Kg7 {[%emt 0:00:01]} 75. Re8 {[%emt 0:00:01]} Ra7 {[%emt 0:00:02]} 76. Rc8 {[%emt 0:00:06]} Kg6 {[%emt 0:00:05]} 77. Rd8 {[%emt 0:00:13]} Rg7 {[%emt 0:00:01]} 78. Ra8 {[%emt 0:00:09]} Kf5+ {[%emt 0:00:01]} 79. Kf2 {[%emt 0:00:01]} Rd7 {[%emt 0:00:13]} 80. Rh8 {[%emt 0:00:08]} Kg6 {[%emt 0:00:01]} 81. Rg8+ {[%emt 0:00:03]} Rg7 {[%emt 0:00:01]} 82. Ra8 {[%emt 0:00:02]} Rh7 {[%emt 0:00:08]} 83. Re8 {[%emt 0:00:09]} Kf5 {[%emt 0:00:01]} 84. Rb8 {[%emt 0:00:06]} Rh6 {[%emt 0:00:02]} 85. Rb7 {[%emt 0:00:04]} 1/2-1/2